Posting Date,Expenditure Area,Supplier Name, Amount ,Expense Type,Reason for Expense
18-Mar-20,Corporate Management Team,Eb *creative Sharing S,-10.00 ,Specific Campaigns / Projects expenditure,event cancelled
16-Mar-20,Culture & Environment Services,Aldi 776 104, 27.47 ,Equipment / Furniture / Materials,Tools for FAMA's
18-Mar-20,Culture & Environment Services,Aldi 776 104, 2.30 ,Materials and Supplies - Miscellaneous,4 x bottles multi surface cleaner
18-Mar-20,Culture & Environment Services,Aldi 776 104, 2.30 ,Materials and Supplies - Miscellaneous,4 x bottles of multi surface cleaner
26-Feb-20,Culture & Environment Services,Aldi 89 776, 31.14 ,Miscellaneous Expenses,refreshments for volunteers
26-Feb-20,Culture & Environment Services,Aldi 89 776, 28.68 ,Miscellaneous Expenses,refreshments for volunteers
09-Mar-20,Culture & Environment Services,Aldi Stores, 5.82 ,Materials and Supplies - Miscellaneous,Seat cover for the works vehicle - CHANTRY HUB
13-Mar-20,Culture & Environment Services,Amazon Prime, 6.66 ,Equipment / Furniture / Materials,Tape
26-Mar-20,Culture & Environment Services,Amazon.Co.Uk, 16.32 ,Computer Consumables and other Minor IT costs,3x wireless mouse
17-Feb-20,Culture & Environment Services,Amazon.Co.Uk, 17.74 ,Equipment / Furniture / Materials,Purchase of DMX Compatible Splitter cable for Hearing Loop
16-Mar-20,Culture & Environment Services,Amazon.Co.Uk, 6.04 ,Equipment / Furniture / Materials,A4 LEAFLET HOLDER
23-Mar-20,Culture & Environment Services,Amazon.Co.Uk, 33.32 ,Equipment / Furniture / Materials,Face Masks for Crem. Operators
23-Mar-20,Culture & Environment Services,Amazon.Co.Uk, 75.82 ,Stationery,stationary supplies
23-Mar-20,Culture & Environment Services,Amazon.Co.Uk, 6.30 ,Stationery,stationary supplies for office
24-Mar-20,Culture & Environment Services,Amazon.Co.Uk, 23.32 ,Stationery,stationary items & supplies for office
18-Mar-20,Culture & Environment Services,Amznmktplace, 17.57 ,Clothing / Uniform & Laundry,Warehouse coat 
03-Mar-20,Culture & Environment Services,Amznmktplace, 537.45 ,Computer Equipment - Purchase,3x Samsung tablets
28-Feb-20,Culture & Environment Services,Amznmktplace, 16.65 ,Equipment / Furniture / Materials,Audio lead and aqua dumbbell storage bag
03-Mar-20,Culture & Environment Services,Amznmktplace, 35.67 ,Equipment / Furniture / Materials,wet floor signs
05-Mar-20,Culture & Environment Services,Amznmktplace, 12.50 ,Equipment / Furniture / Materials,Tea bags
06-Mar-20,Culture & Environment Services,Amznmktplace, 45.00 ,Equipment / Furniture / Materials,Coffee for office
12-Mar-20,Culture & Environment Services,Amznmktplace, 27.50 ,Equipment / Furniture / Materials,White board
18-Mar-20,Culture & Environment Services,Amznmktplace, 54.08 ,Equipment / Furniture / Materials,PPE for extra crematorium staff
18-Mar-20,Culture & Environment Services,Amznmktplace, 10.48 ,Equipment / Furniture / Materials,Supplies for Crematorium
18-Mar-20,Culture & Environment Services,Amznmktplace, 12.91 ,Equipment / Furniture / Materials,Supplies for Crematorium
27-Mar-20,Culture & Environment Services,Amznmktplace, 18.75 ,Equipment / Furniture / Materials,Adapters to run 2 screens on pc
27-Mar-20,Culture & Environment Services,Amznmktplace, 4.92 ,Equipment / Furniture / Materials,Bags for small Ash sample
30-Mar-20,Culture & Environment Services,Amznmktplace, 19.70 ,Equipment / Furniture / Materials,Face Mask for operators. -Spares
03-Mar-20,Culture & Environment Services,Amznmktplace, 21.80 ,Materials and Supplies - Miscellaneous,Phone chargers
05-Mar-20,Culture & Environment Services,Amznmktplace, 14.98 ,Materials and Supplies - Miscellaneous,Project folders - CHRISTCHURCH HUB
19-Mar-20,Culture & Environment Services,Amznmktplace, 37.37 ,Materials and Supplies - Miscellaneous,Antibacterial hand wash bottles COVID 19
26-Feb-20,Culture & Environment Services,Amznmktplace, 29.75 ,Miscellaneous Expenses,2 indoor footballs
12-Mar-20,Culture & Environment Services,Amznmktplace, 8.30 ,Stationery,Laminating Wallets
25-Mar-20,Culture & Environment Services,Amznmktplace, 85.40 ,Stationery,Items stationary
05-Mar-20,Culture & Environment Services,Amznmktplace Amazon.Co.Uk, 24.45 ,Direct Transport Costs,6 USB car chargers
03-Mar-20,Culture & Environment Services,Amznmktplace Amazon.Co.Uk, 24.32 ,Equipment / Furniture / Materials,Coffee for bearers
04-Mar-20,Culture & Environment Services,Amznmktplace Amazon.Co.Uk, 8.32 ,Equipment / Furniture / Materials,No. 69 Rubber Bands for bio boxes
19-Mar-20,Culture & Environment Services,Amznmktplace Amazon.Co.Uk, 67.50 ,Equipment / Furniture / Materials,PPE for extra crematorium staff
19-Mar-20,Culture & Environment Services,Amznmktplace Amazon.Co.Uk, 104.99 ,Equipment / Furniture / Materials,Shelving units for cremated remains
23-Mar-20,Culture & Environment Services,Amznmktplace Amazon.Co.Uk, 15.32 ,Equipment / Furniture / Materials,PPE for Crematorium - Shoe Covers
24-Mar-20,Culture & Environment Services,Amznmktplace Amazon.Co.Uk, 31.47 ,Equipment / Furniture / Materials,HDMI plugs for twin monitors
12-Mar-20,Culture & Environment Services,Amznmktplace Amazon.Co.Uk, 3.74 ,Miscellaneous Expenses,Colouring pencils
24-Mar-20,Culture & Environment Services,Amznmktplace Amazon.Co.Uk, 48.85 ,Specific Campaigns / Projects expenditure,Athletics equipment
23-Mar-20,Culture & Environment Services,Anchor Safety Llp, 187.60 ,Equipment / Furniture / Materials,Gauntlets for Cremator operator
26-Feb-20,Culture & Environment Services,Anglo Adhesives, 23.90 ,Equipment / Furniture / Materials,PVC adhesive for castle patch repairs
25-Mar-20,Culture & Environment Services,Aquajet Cleaning Equipmen, 66.55 ,Materials and Supplies - Miscellaneous,Water Suction Filter - BOURNE PARK PADDLING POOL
22-Jan-20,Culture & Environment Services,Argos Ipswich Carr Street, 10.82 ,Equipment / Furniture / Materials,Headphones for testing Induction Loop
10-Dec-19,Culture & Environment Services,Asda Stores 4278, 97.34 ,Catering/Beverages,Show Catering - Recharge
24-Dec-19,Culture & Environment Services,Asda Stores 4278, 90.49 ,Catering/Beverages,Show Catering - Recharge
02-Jan-20,Culture & Environment Services,Asda Stores 4278, 34.18 ,Catering/Beverages,Meeting Catering Recharge
23-Jan-20,Culture & Environment Services,Asda Stores 4278, 69.69 ,Catering/Beverages,Event Catering Recharge
10-Feb-20,Culture & Environment Services,Asda Stores 4278, 78.05 ,Catering/Beverages,Show catering recharge
24-Feb-20,Culture & Environment Services,Asda Stores 4278, 19.87 ,Catering/Beverages,Meeting Catering
12-Mar-20,Culture & Environment Services,Asda Stores 4278, 59.62 ,Catering/Beverages,Show Catering Recharge
16-Mar-20,Culture & Environment Services,Asda Stores 4278, 45.55 ,Catering/Beverages,Meeting Catering
05-Mar-20,Culture & Environment Services,Asda Stores 4278, 1.10 ,Miscellaneous Expenses,Milk for volunteers tea/coffee
23-Dec-19,Culture & Environment Services,Asda Superstore, 84.74 ,Catering/Beverages,Event Catering - recharge
06-Mar-20,Culture & Environment Services,Asda Superstore, 50.00 ,Catering/Beverages,Drink for Regent Bars (Priscilla)
09-Mar-20,Culture & Environment Services,B & M Retail, 9.56 ,Catering/Beverages,Ketchup and Mustard for hot dogs at Darts
13-Feb-20,Culture & Environment Services,B & M Retail, 8.32 ,Equipment / Furniture / Materials,Cable ties for LOLER inspections
26-Feb-20,Culture & Environment Services,B & M Retail, 1.15 ,Equipment / Furniture / Materials,Milk
11-Mar-20,Culture & Environment Services,B & M Retail, 14.22 ,Equipment / Furniture / Materials,Air freshener and anti bac spray
28-Jan-20,Culture & Environment Services,B & M Retail, 6.89 ,Miscellaneous Expenses,Purchase of tea and coffee items for backstage
14-Feb-20,Culture & Environment Services,B & M Retail, 6.23 ,Miscellaneous Expenses,Cleaning products for backstage kitchen
09-Mar-20,Culture & Environment Services,B & Q 1315, 4.17 ,Cleaning Supplies,Spray Bottles
17-Mar-20,Culture & Environment Services,B & Q 1315, 40.00 ,Equipment / Furniture / Materials,Decking for repairs to broken platform - MARYON ROAD
18-Mar-20,Culture & Environment Services,B & Q 1315, 7.13 ,Equipment / Furniture / Materials,Treated Timber - LAGONDA MULTIPLAY - Play Area Inspector
12-Mar-20,Culture & Environment Services,B & Q 1315, 7.92 ,Materials and Supplies - Miscellaneous,20kg Blue Circle Postcrete
13-Mar-20,Culture & Environment Services,B & Q 1315, 19.24 ,Materials and Supplies - Miscellaneous,Cement for bench bases - BOURNE PARK
13-Mar-20,Culture & Environment Services,B & Q 1315, 4.81 ,Materials and Supplies - Miscellaneous,Nuts Bolts and Washers
16-Mar-20,Culture & Environment Services,B & Q 1315, 19.24 ,Materials and Supplies - Miscellaneous,Cement for bench bases - BOURNE PARK
11-Mar-20,Culture & Environment Services,B & Q 1315, 79.17 ,Miscellaneous Stock  - Purchases,20x Postcrete - DUMBARTON REC - Landscape Team
24-Mar-20,Culture & Environment Services,B & Q 1315, 13.49 ,Miscellaneous Stock  - Purchases,Cementone repair & pointing kit - NORTHGATE SCHOOL
20-Mar-20,Culture & Environment Services,B&m Retail, 30.77 ,Equipment / Furniture / Materials,Supplies for Crematorium
11-Mar-20,Culture & Environment Services,B&m Retail, 41.46 ,Materials and Supplies - Miscellaneous,Anti-bacterial Wipes/bleach spray - COVID19
11-Mar-20,Culture & Environment Services,B&m Retail, 89.55 ,Materials and Supplies - Miscellaneous,Anti-bacterial Wipes/bleach spray - COVID19
12-Mar-20,Culture & Environment Services,B&m Retail, 19.90 ,Materials and Supplies - Miscellaneous,Anti-bacterial Wipes/bleach spray - COVID19
19-Mar-20,Culture & Environment Services,B&q Direct, 155.83 ,Materials and Supplies - Miscellaneous,Purchase of paint for backstage dressing rooms and corridors
13-Mar-20,Culture & Environment Services,Bennetts, 5.68 ,Materials and Supplies - Miscellaneous,rivets for fixing signs
09-Mar-20,Culture & Environment Services,Bigdug Limited, 74.00 ,Equipment / Furniture / Materials,re cycling bin for kiosk plastics
11-Mar-20,Culture & Environment Services,Blackburn Safetywear," 1,593.60 ",Materials and Supplies - Miscellaneous,Gloves for COVID 19 prep
25-Mar-20,Culture & Environment Services,Bolton Stores, 35.47 ,Equipment / Furniture / Materials,Batteries for loud hailers
04-Mar-20,Culture & Environment Services,Booker Limited Ipswich, 175.14 ,Catering/Beverages,Items for bars
12-Mar-20,Culture & Environment Services,Booker Limited Ipswich, 47.98 ,Cleaning Supplies,Gloves for Regent & Corn Exchange
12-Mar-20,Culture & Environment Services,Booker Limited Ipswich, 47.97 ,Cleaning Supplies,Gloves for Regent & Corn Exchange
25-Feb-20,Culture & Environment Services,Booker Limited Ipswich, 6.24 ,Materials and Supplies - Miscellaneous,Sundries for Waste Services
13-Mar-20,Culture & Environment Services,Booker Limited Ipswich, 48.88 ,Materials and Supplies - Miscellaneous,hand wipes for refuse crew
27-Mar-20,Culture & Environment Services,Booker Limited Ipswich, 6.58 ,Miscellaneous Stock  - Purchases,Gloves for Landscape Team
06-Feb-20,Culture & Environment Services,British Cycling Fe, 41.67 ,Non Contracted_Professional Services,British Cycling Website Set-up Fee - Crafted Classique
26-Feb-20,Culture & Environment Services,Britishsafe, 470.25 ,Training Expenses,NEBOSH 
13-Mar-20,Culture & Environment Services,Buildbase - Ipswich, 14.83 ,Miscellaneous Stock  - Purchases,Material for bench base - DUMBARTON REC - Landscape Team
16-Mar-20,Culture & Environment Services,Bunzl, 171.46 ,Cleaning Supplies,Hand sanitizer and virucidal cleaner
17-Mar-20,Culture & Environment Services,Bunzl, 348.01 ,Cleaning Supplies,Cleaning Supplies
24-Feb-20,Culture & Environment Services,C Brewer & Sons, 159.51 ,Materials and Supplies - Miscellaneous,Cleansing Supplies - Westbourne High job
17-Feb-20,Culture & Environment Services,Canford Audio Plc, 138.00 ,Equipment / Furniture / Materials,Purchase of PHANTOM POWER SUPPLY for Hearing Loop
05-Mar-20,Culture & Environment Services,Carethy Ecommerce S.L., 43.89 ,Materials and Supplies - Miscellaneous,Hand Gel for HEARS
16-Mar-20,Culture & Environment Services,Cleaning Technicians L, 9.98 ,Materials and Supplies - Miscellaneous,key cutting for bin stores
26-Feb-20,Culture & Environment Services,Collier&catchpole, 185.00 ,Materials and Supplies - Miscellaneous,Geotextile Multitrack - CHANTRY PARK
26-Feb-20,Culture & Environment Services,Collier&catchpole, 27.24 ,Miscellaneous Stock  - Purchases,Repairs to Standpipe - WHITTON CHURCH LANE
06-Mar-20,Culture & Environment Services,Collier&catchpole, 95.10 ,Miscellaneous Stock  - Purchases,80mm x 100m coil black - SUGAR BEET SITE
26-Feb-20,Culture & Environment Services,Continental Sports Ltd, 311.00 ,Equipment / Furniture / Materials,New trampoline push in mats to replace condemned mats
21-Feb-20,Culture & Environment Services,Cpw Locksmiths And Securi, 10.00 ,Materials and Supplies - Miscellaneous,key cutting for bin stores
13-Mar-20,Culture & Environment Services,Cpw Locksmiths And Securi, 11.67 ,Materials and Supplies - Miscellaneous,key cutting for bin stores
13-Mar-20,Culture & Environment Services,Cybermarket Electronic Su, 132.50 ,Equipment / Furniture / Materials,Tannoy system
27-Feb-20,Culture & Environment Services,Dale Sauna Ltd, 380.79 ,Cleaning Supplies,pool chemicals
24-Mar-20,Culture & Environment Services,David Austin Rose, 671.48 ,Miscellaneous Stock  - Purchases,Cemeteries Roses
16-Mar-20,Culture & Environment Services,Dvla Vehicle Tax, 262.50 ,Direct Transport Costs,Vehicle Tax for AO08 VAF
16-Mar-20,Culture & Environment Services,Dvla Vehicle Tax, 262.50 ,Direct Transport Costs,Vehicle Tax for AY14 NUX
16-Mar-20,Culture & Environment Services,Dvla Vehicle Tax, 262.50 ,Direct Transport Costs,Vehicle Tax for BXL
16-Mar-20,Culture & Environment Services,Dvla Vehicle Tax, 262.50 ,Direct Transport Costs,vehicle tax for DV10 CGX
16-Mar-20,Culture & Environment Services,Dvla Vehicle Tax, 262.50 ,Direct Transport Costs,Vehicle Tax for LG15 BXK
16-Mar-20,Culture & Environment Services,Dvla Vehicle Tax, 262.50 ,Direct Transport Costs,Vehicle Tax for LG15 BXN
16-Mar-20,Culture & Environment Services,Dvla Vehicle Tax, 262.50 ,Direct Transport Costs,Vehicle Tax for LJ15 XFG
16-Mar-20,Culture & Environment Services,Dvla Vehicle Tax, 262.50 ,Direct Transport Costs,Vehicle Tax for LJ15 XFH
16-Mar-20,Culture & Environment Services,Dvla Vehicle Tax, 262.50 ,Direct Transport Costs,Vehicle Tax for LJ15 XFM
16-Mar-20,Culture & Environment Services,Dvla Vehicle Tax, 262.50 ,Direct Transport Costs,Vehicle Tax for LJ15 XFN
16-Mar-20,Culture & Environment Services,Dvla Vehicle Tax, 262.50 ,Direct Transport Costs,Vehicle tax for LJ15 XFO
16-Mar-20,Culture & Environment Services,Dvla Vehicle Tax, 262.50 ,Direct Transport Costs,Vehicle Tax for LJ15 XFR
16-Mar-20,Culture & Environment Services,Dvla Vehicle Tax, 262.50 ,Direct Transport Costs,Vehicle Tax for LJ15 XFS
16-Mar-20,Culture & Environment Services,Dvla Vehicle Tax, 262.50 ,Direct Transport Costs,Vehicle Tax for LJ15 XFT
16-Mar-20,Culture & Environment Services,Dvla Vehicle Tax, 262.50 ,Direct Transport Costs,Vehicle Tax for LJ15 XFV
16-Mar-20,Culture & Environment Services,Dvla Vehicle Tax, 262.50 ,Direct Transport Costs,Vehicle Tax for LJ15 XFW
16-Mar-20,Culture & Environment Services,Dvla Vehicle Tax, 262.50 ,Direct Transport Costs,Vehicle Tax for LJ15 XFX
16-Mar-20,Culture & Environment Services,Dvla Vehicle Tax, 262.50 ,Direct Transport Costs,Vehicle Tax for LJ15 XFY
16-Mar-20,Culture & Environment Services,Dvla Vehicle Tax, 262.50 ,Direct Transport Costs,Vehicle Tax for XFL
16-Mar-20,Culture & Environment Services,Dvla Vehicle Tax, 262.50 ,Direct Transport Costs,vehicle tax LG15 BXF
16-Mar-20,Culture & Environment Services,Dvla Vehicle Tax, 262.50 ,Direct Transport Costs,Vehicle Tax LG15 BXH
16-Mar-20,Culture & Environment Services,Dvla Vehicle Tax, 262.50 ,Direct Transport Costs,Vehicle Tax LG15 BXP
16-Mar-20,Culture & Environment Services,Dvla Vehicle Tax, 262.50 ,Direct Transport Costs,vehicle tax LG15 BXR
16-Mar-20,Culture & Environment Services,Dvla Vehicle Tax, 262.50 ,Direct Transport Costs,Vehicle Tax LG15 BXU
16-Mar-20,Culture & Environment Services,Dvla Vehicle Tax, 262.50 ,Direct Transport Costs,Vehicle Tax LG15 BXV
16-Mar-20,Culture & Environment Services,Dvla Vehicle Tax, 262.50 ,Direct Transport Costs,Vehicle Tax LJ15 AUN
16-Mar-20,Culture & Environment Services,Dvla Vehicle Tax, 262.50 ,Direct Transport Costs,Vehicle Tax LJ15 XFP
19-Mar-20,Culture & Environment Services,Dvla Vehicle Tax, 262.50 ,Direct Transport Costs,Vehicle tax for LG15 BXJ
24-Mar-20,Culture & Environment Services,Dvla Vehicle Tax, 262.50 ,Direct Transport Costs,Vehicle tax for LG15 BXO
27-Mar-20,Culture & Environment Services,Dvla Vehicle Tax, 262.50 ,Direct Transport Costs,Vehicle Tax for LG15 BXM
27-Mar-20,Culture & Environment Services,Dvla Vehicle Tax, 262.50 ,Direct Transport Costs,Vehicle Tax for LG15 BXW
30-Mar-20,Culture & Environment Services,Dvla Vehicle Tax, 262.50 ,Direct Transport Costs,Vehicle Tax for LJ15 XFU
16-Mar-20,Culture & Environment Services,Dvla Vehicle Tax, 262.50 ,Parks Vehicle Costs,Vehicle Tax AP07 SKX
16-Mar-20,Culture & Environment Services,Dvla Vehicle Tax, 262.50 ,Parks Vehicle Costs,vehicle tax EK19 YKM
16-Mar-20,Culture & Environment Services,Dvla Vehicle Tax, 262.50 ,Parks Vehicle Costs,Vehicle Tax for FG09 PWO
17-Mar-20,Culture & Environment Services,Dvla Vehicle Tax, 262.50 ,Parks Vehicle Costs,Vehicle Tax for LJ16 ZWZ
23-Mar-20,Culture & Environment Services,Eveque Leisure Equipment, 234.80 ,Specific Campaigns / Projects expenditure,Athletics equipment
10-Mar-20,Culture & Environment Services,Foxs Chandleries Limi, 65.37 ,Equipment / Furniture / Materials,boat rollocks and buoyancy aids
12-Feb-20,Culture & Environment Services,Fr Jones And Son Ltd, 149.15 ,Clothing / Uniform & Laundry,Ear Defenders
17-Mar-20,Culture & Environment Services,Ginspiratio, 104.95 ,Catering/Beverages,Gin for Corn EX Bars
26-Mar-20,Culture & Environment Services,Groundsman Tools And Supp, 281.27 ,Materials and Supplies - Miscellaneous,Tools and equipment for Cemetery grounds maintenance
16-Mar-20,Culture & Environment Services,Halfords On Line, 846.53 ,Transport Costs - Miscellaneous,8x Tom Tom Sat Navs
04-Mar-20,Culture & Environment Services,Hg Gladwell & Sons, 52.96 ,Materials and Supplies - Miscellaneous,"Nut Feeder, Wild Bird Mix, Buckets Fat Balls"
11-Mar-20,Culture & Environment Services,Home Bargains, 38.67 ,Materials and Supplies - Miscellaneous,Anti-bacterial Wipes/bleach spray - COVID19
23-Mar-20,Culture & Environment Services,Honey Brothers Ltd, 177.82 ,Clothing / Uniform & Laundry,PPE - Hi Vis t-shirts
30-Jan-20,Culture & Environment Services,Honey Brothers Ltd, 385.20 ,Materials and Supplies - Miscellaneous,Positioner Clutch
04-Mar-20,Culture & Environment Services,Honey Brothers Ltd, 21.90 ,Materials and Supplies - Miscellaneous,Lock jack release rope
09-Mar-20,Culture & Environment Services,Horticultural Sppls Ltd, 188.59 ,Materials and Supplies - Miscellaneous,Knapsack Sprayer - CHRISTCHURCH HUB
09-Mar-20,Culture & Environment Services,Hussey Knights Ltd, 96.67 ,Equipment / Furniture / Materials,Plans for CCP
24-Mar-20,Culture & Environment Services,Ipswich Trade Centre, 212.80 ,Clothing / Uniform & Laundry,Nitrile gloves
03-Mar-20,Culture & Environment Services,J P Lennard Ltd, 230.89 ,Equipment / Furniture / Materials,poolside pace clock
10-Mar-20,Culture & Environment Services,J P Lennard Ltd, 64.35 ,Equipment / Furniture / Materials,underwater tile adhesive
10-Dec-19,Culture & Environment Services,Jcb Insurance, 70.17 ,Materials and Supplies - Miscellaneous,JCB insurance
03-Mar-20,Culture & Environment Services,Jcb Insurance, 94.67 ,Materials and Supplies - Miscellaneous,JSB insurance
09-Mar-20,Culture & Environment Services,Joules, 12.50 ,Equipment / Furniture / Materials,Customer event prize
04-Mar-20,Culture & Environment Services,Karzees Ltd, 61.00 ,Equipment / Furniture / Materials,Portaloo for Pipers Vale Site
11-Mar-20,Culture & Environment Services,Kings, 645.00 ,Equipment / Furniture / Materials,Keys for all Cemetery
19-Mar-20,Culture & Environment Services,Kings, 66.67 ,Materials and Supplies - Miscellaneous,12 keys and 4 general items
06-Feb-20,Culture & Environment Services,Landscape Supply Compa, 51.98 ,Clothing / Uniform & Laundry,Waterproof boots for Tree insepctor & Arb Officer
07-Feb-20,Culture & Environment Services,Landscape Supply Compa, 95.45 ,Development & Maintenance of Natural Areas,"Rakes , Broom & Brushes - Rangers"
05-Mar-20,Culture & Environment Services,Leisureteq, 350.00 ,Equipment / Furniture / Materials,dosing parts
06-Feb-20,Culture & Environment Services,Lumberjacks, 22.50 ,Development & Maintenance of Natural Areas,Wood for repairs - Rangers
06-Feb-20,Culture & Environment Services,Lumberjacks, 152.55 ,Development & Maintenance of Natural Areas,Wood for repairs - Rangers
03-Mar-20,Culture & Environment Services,Lumberjacks, 137.85 ,Materials and Supplies - Miscellaneous,Repairs to the fence - CCP DOG CARE
16-Mar-20,Culture & Environment Services,Lumberjacks, 118.37 ,Materials and Supplies - Miscellaneous,Material for installation of a fence - WHITLAND CLOSE
18-Mar-20,Culture & Environment Services,Lumberjacks, 270.00 ,Materials and Supplies - Miscellaneous,Lockbox for keys to the park
19-Mar-20,Culture & Environment Services,Lumberjacks, 12.35 ,Materials and Supplies - Miscellaneous,Fencing for Burrell Road job
06-Mar-20,Culture & Environment Services,Lumberjacks, 130.75 ,Miscellaneous Stock  - Purchases,Round Stakes - BOURNE PARK - Landscape Team
24-Feb-20,Culture & Environment Services,Machine Mart Ltd, 106.99 ,Equipment / Furniture / Materials,Cleansing supplies
24-Mar-20,Culture & Environment Services,Machine Mart Ltd, 37.95 ,Materials and Supplies - Miscellaneous,GLOVES - COVID19 - Park Patrol
23-Dec-19,Culture & Environment Services,Makro Self Service Ipswic, 259.41 ,Catering/Beverages,Additional Stock
30-Dec-19,Culture & Environment Services,Makro Self Service Ipswic, 123.55 ,Catering/Beverages,Additional Stock
20-Jan-20,Culture & Environment Services,Makro Self Service Ipswic, 99.81 ,Catering/Beverages,Additional Stock
02-Mar-20,Culture & Environment Services,Makro Self Service Ipswic, 214.80 ,Catering/Beverages,Additional Stock
16-Mar-20,Culture & Environment Services,Makro Self Service Ipswic, 92.61 ,Equipment / Furniture / Materials,Cleaning Supplies/Soap/Gloves
13-Mar-20,Culture & Environment Services,Makro Self Service Ipswic, 86.30 ,Materials and Supplies - Miscellaneous,hand wipes for refuse crew
16-Mar-20,Culture & Environment Services,Makro Self Service Ipswic, 114.82 ,Materials and Supplies - Miscellaneous,Anti bacterial wipes
16-Mar-20,Culture & Environment Services,Makro Self Service Ipswic, 71.92 ,Materials and Supplies - Miscellaneous,Antibacterial wipes
30-Mar-20,Culture & Environment Services,Makro Self Service Ipswic, 143.71 ,Materials and Supplies - Miscellaneous,Food and packaging for Food Parcels
10-Mar-20,Culture & Environment Services,Mark Harrod Ltd, 210.00 ,Equipment / Furniture / Materials,Replacement goal nets for 3G pitch goals
05-Mar-20,Culture & Environment Services,Office Is Ltd, 139.00 ,Equipment / Furniture / Materials,Office chair 
16-Mar-20,Culture & Environment Services,P And R Locksmiths, 714.56 ,Equipment / Furniture / Materials,Replacement Hydraulic gate closers
25-Mar-20,Culture & Environment Services,P And R Locksmiths, 107.27 ,Miscellaneous Stock  - Purchases,Replacement Padlocks for all Parks
25-Mar-20,Culture & Environment Services,P And R Locksmiths, 107.27 ,Miscellaneous Stock  - Purchases,Replacement Padlocks for all Parks
25-Mar-20,Culture & Environment Services,P And R Locksmiths, 107.28 ,Miscellaneous Stock  - Purchases,Replacement Padlocks for all Parks
04-Mar-20,Culture & Environment Services,Panther Security,-91.00 ,Security Services,Refund of servicing payment.
19-Mar-20,Culture & Environment Services,Paypal, 112.41 ,Clothing / Uniform & Laundry,Disposable gloves
27-Feb-20,Culture & Environment Services,Paypal, 159.11 ,Equipment / Furniture / Materials,Polycarbonates
11-Mar-20,Culture & Environment Services,Paypal, 317.12 ,Equipment / Furniture / Materials,"Crash mat for gymnastics, footballs, pump and net clips"
05-Mar-20,Culture & Environment Services,Paypal, 9.00 ,Materials and Supplies - Miscellaneous,chainsaw spare parts
21-Feb-20,Culture & Environment Services,Paypal, 2.91 ,Stationery,A3 map Polly pockets - Landscape
21-Feb-20,Culture & Environment Services,Paypal, 3.54 ,Stationery,A4 polly pockets for office
11-Mar-20,Culture & Environment Services,Pegasus Industrial, 15.92 ,Materials and Supplies - Miscellaneous,Elbow for safety rail
23-Mar-20,Culture & Environment Services,Pirtek Ipswich, 363.14 ,Miscellaneous Stock  - Purchases,Bucket Hydraulics - LANDSCAPE TEAM
09-Mar-20,Culture & Environment Services,Post Office Counter, 5.42 ,Postage Costs,Postage for HAVs Meter
10-Mar-20,Culture & Environment Services,Poundland Ltd 1344, 0.83 ,Equipment / Furniture / Materials,Cleaning items for CCP
17-Mar-20,Culture & Environment Services,Poundstretcher 268, 1.67 ,Materials and Supplies - Miscellaneous,2 x packets of wipes
16-Mar-20,Culture & Environment Services,Premier Farnell, 32.40 ,Equipment / Furniture / Materials,light bulbs
29-Jan-20,Culture & Environment Services,Premier Farnell, 45.43 ,Materials and Supplies - Miscellaneous,Blue Roll
01-Jan-20,Culture & Environment Services,Premier Suites Newcastle, 70.00 ,Miscellaneous Expenses,Accommodation 
06-Mar-20,Culture & Environment Services,Prospec Ltd, 939.85 ,Equipment / Furniture / Materials,locker parts
30-Dec-19,Culture & Environment Services,Railcard.Co.Uk, 25.00 ,Miscellaneous Expenses,Train Travel 
18-Feb-20,Culture & Environment Services,Rapid Electronics Term, 137.20 ,Equipment / Furniture / Materials,Microphone cable for Hearing Loop
09-Mar-20,Culture & Environment Services,Replacement Keys Ltd, 14.12 ,Equipment / Furniture / Materials,keys for the toilet roll dispensers in Town Hall and CEX
30-Mar-20,Culture & Environment Services,Rhinox Group Ltd, 395.00 ,Miscellaneous Stock  - Purchases,Bucket for use in cemeteries. COVID19
02-Mar-20,Culture & Environment Services,Ridgeons Atc Ipswich, 61.87 ,Equipment / Furniture / Materials,Power Tool Blades - PLAY AREA INSPECTOR
06-Mar-20,Culture & Environment Services,Ryman, 14.98 ,Stationery,Card
17-Mar-20,Culture & Environment Services,Safetysuppl, 108.20 ,Equipment / Furniture / Materials,PPE for crematorium
23-Dec-19,Culture & Environment Services,Sainsburys S/mkt, 88.42 ,Catering/Beverages,Event catering
17-Feb-20,Culture & Environment Services,Sainsburys S/mkt, 36.67 ,Catering/Beverages,Meeting catering
13-Mar-20,Culture & Environment Services,Sainsburys S/mkt, 2.20 ,Materials and Supplies - Miscellaneous,Sundries for Waste Services
18-Mar-20,Culture & Environment Services,Sainsburys S/mkt, 2.20 ,Materials and Supplies - Miscellaneous,Sundries for Waste Services
20-Mar-20,Culture & Environment Services,Sainsburys S/mkt, 11.08 ,Materials and Supplies - Miscellaneous,Sundries for Waste Services
26-Mar-20,Culture & Environment Services,Sainsburys S/mkt, 5.62 ,Materials and Supplies - Miscellaneous,Sundries for Waste Services
30-Mar-20,Culture & Environment Services,Sainsburys S/mkt, 28.75 ,Materials and Supplies - Miscellaneous,Butter for Food Parcels
03-Jan-20,Culture & Environment Services,Sainsburys S/mkts, 25.87 ,Catering/Beverages,Meeting Catering Recharge
25-Feb-20,Culture & Environment Services,Sainsburys S/mkts, 4.17 ,Catering/Beverages,Food for conference 51239
25-Feb-20,Culture & Environment Services,Sainsburys S/mkts, 5.00 ,Catering/Beverages,Lemons for Bars
25-Feb-20,Culture & Environment Services,Sainsburys S/mkts, 5.00 ,Catering/Beverages,Lemons for Bars
06-Mar-20,Culture & Environment Services,Sainsburys S/mkts, 5.60 ,Catering/Beverages,Lemons
16-Mar-20,Culture & Environment Services,Sainsburys S/mkts, 5.60 ,Catering/Beverages,Lemons
26-Feb-20,Culture & Environment Services,Sainsburys S/mkts, 4.43 ,Equipment / Furniture / Materials,Spancula
19-Feb-20,Culture & Environment Services,Sainsburys S/mkts, 5.95 ,Materials and Supplies - Miscellaneous,Sundries for Waste Services
25-Feb-20,Culture & Environment Services,Sainsburys S/mkts, 2.75 ,Materials and Supplies - Miscellaneous,Sundries for Waste Services
28-Feb-20,Culture & Environment Services,Sainsburys S/mkts, 10.75 ,Materials and Supplies - Miscellaneous,Sundries for Waste Services
04-Mar-20,Culture & Environment Services,Sainsburys S/mkts, 7.20 ,Materials and Supplies - Miscellaneous,Sundries for Waste Services
10-Mar-20,Culture & Environment Services,Sainsburys S/mkts, 10.75 ,Materials and Supplies - Miscellaneous,Sundries for Waste Services
17-Mar-20,Culture & Environment Services,Sainsburys S/mkts, 2.17 ,Materials and Supplies - Miscellaneous,Anti-Bacterial Hand wash - Christchurch Hub
02-Mar-20,Culture & Environment Services,Sainsburys S/mkts, 2.00 ,Miscellaneous Expenses,Coffee for barn wildlife homes volunteers
17-Mar-20,Culture & Environment Services,Savers Health & Beauty, 2.04 ,Materials and Supplies - Miscellaneous,Nail Brushes for Mess Room - Christchurch Hub
05-Mar-20,Culture & Environment Services,Screens-R-Us-Limited, 48.00 ,Direct Transport Costs,Chip repair to AY66 CYA
05-Mar-20,Culture & Environment Services,Screens-R-Us-Limited, 48.00 ,Direct Transport Costs,Chip repair to AY69 OJD
05-Mar-20,Culture & Environment Services,Screens-R-Us-Limited, 594.00 ,Direct Transport Costs,Replacement windscreen AY69 OJE
17-Mar-20,Culture & Environment Services,Screens-R-Us-Limited, 60.00 ,Direct Transport Costs,O/S front door glass repaired
19-Mar-20,Culture & Environment Services,Screens-R-Us-Limited, 40.00 ,Direct Transport Costs,Chip repair AV13 OPL
19-Mar-20,Culture & Environment Services,Screens-R-Us-Limited, 35.00 ,Direct Transport Costs,Chip repair AV69 XRM
24-Mar-20,Culture & Environment Services,Screens-R-Us-Limited, 288.00 ,Direct Transport Costs,o/s front repair AY15 NFZ
20-Mar-20,Culture & Environment Services,Screens-R-Us-Limited, 120.00 ,Parks Vehicle Costs,Replacement WS for AP07 YNH
10-Mar-20,Culture & Environment Services,Screwfix Dir. Ltd, 83.47 ,Clothing / Uniform & Laundry,Safety Boots - LANDSCAPE TEAM
02-Mar-20,Culture & Environment Services,Screwfix Dir. Ltd, 13.32 ,Equipment / Furniture / Materials,Various screws/tools - PLAY AREA INSPECTOR
02-Mar-20,Culture & Environment Services,Screwfix Dir. Ltd, 3.89 ,Fixtures & Fittings,Purchase of replacement door handle for Dressing Rm 1
06-Mar-20,Culture & Environment Services,Screwfix Dir. Ltd, 31.64 ,Miscellaneous Stock  - Purchases,Saw blades/cutting Disc - BOURNE PARK - Landscape Team
11-Mar-20,Culture & Environment Services,Screwfix Dir. Ltd, 10.16 ,Miscellaneous Stock  - Purchases,Easyfix Screws - DUMBARTON REC - Landscape Team
12-Mar-20,Culture & Environment Services,Screwfix Dir. Ltd, 5.91 ,Miscellaneous Stock  - Purchases,Easyfix Nuts - BOURNE PARK - Landscape Team
18-Mar-20,Culture & Environment Services,Screwfix Dir. Ltd, 16.97 ,Miscellaneous Stock  - Purchases,Rawplugs & WD40 - DUMBARTON REC - Landscape Team
12-Mar-20,Culture & Environment Services,Screwfix Direct, 57.92 ,Equipment / Furniture / Materials,Purchase of Gloves for crew to combat virus spreading
19-Mar-20,Culture & Environment Services,Screwfix Direct, 73.72 ,Equipment / Furniture / Materials,Extension Lead and Fan for crematorium
27-Mar-20,Culture & Environment Services,Screwfix Direct, 140.23 ,Equipment / Furniture / Materials,Plumbing parts
31-Mar-20,Culture & Environment Services,Screwfix Direct, 100.43 ,Equipment / Furniture / Materials,toilet parts
17-Feb-20,Culture & Environment Services,Screwfix Direct Lt, 12.47 ,Materials and Supplies - Miscellaneous,Cable clips for Hearing loop installation
30-Jan-20,Culture & Environment Services,Snorkel Europe Limited, 510.23 ,Equipment - Repairs,Repair of Snorkel lift in readiness for LOLER inspection.
27-Feb-20,Culture & Environment Services,Snorkel Europe Limited, 512.09 ,Equipment - Repairs,LOLER Inspection and replacement parts for Snorkel Lifts
27-Feb-20,Culture & Environment Services,Snorkel Europe Limited, 249.00 ,Equipment / Furniture / Materials,LOLER Inspection and replacement parts for Snorkel Lifts
17-Mar-20,Culture & Environment Services,Sp * Energybulbs.Co.Uk, 175.77 ,Equipment / Furniture / Materials,3 x plant room water tap heaters
24-Jan-20,Culture & Environment Services,Sportsdirect 366, 54.98 ,Clothing / Uniform & Laundry,Purchase of PPE Work boots
24-Mar-20,Culture & Environment Services,Sproughton Garden Machine, 531.45 ,Equipment / Furniture / Materials,service and repair of d brushcutters
12-Mar-20,Culture & Environment Services,Sq *glow Sparkles, 353.33 ,Catering/Beverages,Sparkle for Pricilla Cocktails
03-Mar-20,Culture & Environment Services,Sq *jax First Aid Limited, 46.57 ,Materials and Supplies - Miscellaneous,Hygiene anti bac wipes
11-Mar-20,Culture & Environment Services,Stakrak.Co.Uk, 296.00 ,Equipment / Furniture / Materials,Shelving for Polycarbonates
05-Mar-20,Culture & Environment Services,Starttraffic.Uk, 284.00 ,Equipment / Furniture / Materials,Safety barriers for Cornhill pop up power - Event programme
16-Mar-20,Culture & Environment Services,Suffolk County Council, 55.00 ,Miscellaneous Stock  - Purchases,Death Certs for public health
23-Mar-20,Culture & Environment Services,Suffolk County Council, 73.33 ,Miscellaneous Stock  - Purchases,Death Certs for public healths
30-Jan-20,Culture & Environment Services,Suffolk County Council, 58.33 ,Non Contracted_Professional Services,SCC Highways MEWP street licence
30-Jan-20,Culture & Environment Services,Suffolk County Council, 58.33 ,Non Contracted_Professional Services,SCC Highways MEWP Street licence
10-Mar-20,Culture & Environment Services,Superdrug Stores Plc, 2.27 ,Equipment / Furniture / Materials,Cleaning items for CCP
13-Mar-20,Culture & Environment Services,Surf & Turf Instant Sh, 120.00 ,Premises Costs - Miscellaneous,New gazebo parts for the market
16-Mar-20,Culture & Environment Services,Tesco Store 2877, 4.17 ,Cleaning Supplies,Multi purpose cleaner for gyms
21-Feb-20,Culture & Environment Services,Tesco Store 3240, 156.00 ,Catering/Beverages,Food for conference 51213
25-Feb-20,Culture & Environment Services,Tesco Store 3240, 110.69 ,Catering/Beverages,Food for Conference 51153
28-Feb-20,Culture & Environment Services,Tesco Store 3240, 152.37 ,Equipment / Furniture / Materials,Polycarbonates
23-Mar-20,Culture & Environment Services,The Range, 10.95 ,Equipment / Furniture / Materials,Masonry Pens
20-Mar-20,Culture & Environment Services,The Range, 5.45 ,Materials and Supplies - Miscellaneous,Fertiliser - CHANTRY HUB
31-Mar-20,Culture & Environment Services,The Range, 8.97 ,Materials and Supplies - Miscellaneous,PPE
26-Feb-20,Culture & Environment Services,Thetrainline.Com, 28.82 ,Miscellaneous Expenses,Train Travel 
02-Mar-20,Culture & Environment Services,Timpson Ltd, 32.71 ,Materials and Supplies - Miscellaneous,Cylinder Keys - CHRISTCHURCH HUB
28-Jan-20,Culture & Environment Services,Toolstation Ltd, 28.32 ,Equipment / Furniture / Materials,Purchase of socket set for auditorium seat removal
19-Mar-20,Culture & Environment Services,Toolstation Ltd, 43.90 ,Equipment / Furniture / Materials,Pipe for water pump
20-Mar-20,Culture & Environment Services,Toolstation Ltd, 3.50 ,Equipment / Furniture / Materials,Deadlock - HOLYWELLS TOILET DOR REPAIRS
19-Mar-20,Culture & Environment Services,Toolstation Ltd, 61.63 ,Materials and Supplies - Miscellaneous,2 x Nightsearcher Trio LED Rechargeable Handlamp Torches
24-Mar-20,Culture & Environment Services,Toolstation Ltd, 31.65 ,Miscellaneous Stock  - Purchases,Measuring Wheel - LANDSCAPE TEAM
04-Mar-20,Culture & Environment Services,Town & Tea, 69.15 ,Catering/Beverages,Meeting Sundries
04-Mar-20,Culture & Environment Services,Town & Tea, 109.50 ,Catering/Beverages,Meeting sundries
23-Mar-20,Culture & Environment Services,Track Field Sports, 749.50 ,Specific Campaigns / Projects expenditure,Athletics equipment
30-Dec-19,Culture & Environment Services,Trainline, 192.63 ,Miscellaneous Expenses,Train Travel 
26-Feb-20,Culture & Environment Services,Trainline, 44.87 ,Miscellaneous Expenses,Train Travel
05-Feb-20,Culture & Environment Services,Travelodge Gb0000, 922.97 ,Subsistence & Conference/Seminar / Event Expenses,REDACTED
19-Mar-20,Culture & Environment Services,Uniconomy Ltd (UK)," 1,010.50 ",Cleaning Supplies,Hand Gel for Public areas
13-Mar-20,Culture & Environment Services,Uniconomy Ltd (UK), 507.10 ,Materials and Supplies - Miscellaneous,Hand sanitisers for crew
27-Feb-20,Culture & Environment Services,Victoria Nurseries, 11.67 ,Equipment / Furniture / Materials,compost for graveside
19-Mar-20,Culture & Environment Services,Victoria Nurseries, 708.33 ,Miscellaneous Stock  - Purchases,Replacement roses
19-Mar-20,Culture & Environment Services,Victoria Nurseries, 708.33 ,Miscellaneous Stock  - Purchases,Replacement roses
22-Jan-20,Culture & Environment Services,W J Green Limited, 98.51 ,Materials and Supplies - Miscellaneous,Husquarva repair
09-Mar-20,Culture & Environment Services,W J Green Limited, 5.60 ,Materials and Supplies - Miscellaneous,8mm Nut Flange
16-Mar-20,Culture & Environment Services,W J Green Limited, 82.74 ,Materials and Supplies - Miscellaneous,Chainsaw repair
21-Feb-20,Culture & Environment Services,Waitrose Ltd, 2.19 ,Catering/Beverages,Limes and soda water - Mayors quiz night
05-Mar-20,Culture & Environment Services,Waitrose Ltd, 1.85 ,Catering/Beverages,Food for buffet
05-Mar-20,Culture & Environment Services,Waitrose Ltd, 2.68 ,Catering/Beverages,Food for buffet
05-Mar-20,Culture & Environment Services,Waitrose Ltd, 2.89 ,Catering/Beverages,Food for buffet
05-Mar-20,Culture & Environment Services,Waitrose Ltd, 3.30 ,Catering/Beverages,Food for buffet
05-Mar-20,Culture & Environment Services,Waitrose Ltd, 7.28 ,Catering/Beverages,Food for buffet
12-Mar-20,Culture & Environment Services,Wh Smith, 17.46 ,Equipment / Furniture / Materials,Stationery for recording HAV's readings Parks
20-Mar-20,Culture & Environment Services,Wickes Ipswich, 171.68 ,Equipment / Furniture / Materials,Ply wood to charge coffins
24-Mar-20,Culture & Environment Services,Wickes Ipswich, 206.67 ,Equipment / Furniture / Materials,Ply wood to charge coffins
25-Feb-20,Culture & Environment Services,Wilko Retail Limited, 10.42 ,Equipment / Furniture / Materials,Items for kitchen
10-Mar-20,Culture & Environment Services,Wilko Retail Limited, 8.18 ,Equipment / Furniture / Materials,Cleaning items for CCP
24-Jan-20,Culture & Environment Services,Wilko Retail Limited, 13.62 ,Fixtures & Fittings,Purchase of wall fixings for dressing rooms
03-Feb-20,Culture & Environment Services,Wilko Retail Limited, 12.50 ,Fixtures & Fittings,Hang Strips for dressing room pictures
17-Mar-20,Culture & Environment Services,Wilko Retail Limited, 1.00 ,Materials and Supplies - Miscellaneous,Sponges for Education Room - Christchurch Park
23-Mar-20,Culture & Environment Services,Wilko Retail Limited, 17.50 ,Miscellaneous Stock  - Purchases,Extension Cables for the meeting room
28-Feb-20,Culture & Environment Services,Wright Foundation," 1,125.00 ",Training Expenses,Level 3 Exercise Referral Course for two employees
27-Feb-20,Culture & Environment Services,Www.Ascotwholesale.Co., 107.94 ,Equipment / Furniture / Materials,Polycarbonate carriers
27-Feb-20,Culture & Environment Services,Www.Ascotwholesale.Co., 71.96 ,Equipment / Furniture / Materials,Polycarbonate carriers
25-Feb-20,Culture & Environment Services,Www.Banneruk.Com, 2.75 ,Stationery,stationary ink
28-Feb-20,Culture & Environment Services,Www.Banneruk.Com, 5.90 ,Stationery,stationary
28-Feb-20,Culture & Environment Services,Www.Banneruk.Com, 44.94 ,Stationery,Stationary
03-Mar-20,Culture & Environment Services,Www.Banneruk.Com, 63.62 ,Stationery,stationary
04-Mar-20,Culture & Environment Services,Www.Banneruk.Com, 8.94 ,Stationery,Stationary for waste
06-Mar-20,Culture & Environment Services,Www.Banneruk.Com, 44.99 ,Stationery,Folders and Mouse mats
10-Mar-20,Culture & Environment Services,Www.Banneruk.Com, 29.82 ,Stationery,General computer cleaning products
13-Mar-20,Culture & Environment Services,Www.Banneruk.Com, 17.43 ,Stationery,Stationary for waste
17-Mar-20,Culture & Environment Services,Www.Banneruk.Com, 31.20 ,Stationery,Stationary for waste
17-Mar-20,Culture & Environment Services,Www.Banneruk.Com, 57.80 ,Stationery,Stationqry for Waste
18-Mar-20,Culture & Environment Services,Www.Banneruk.Com, 4.72 ,Stationery,Unknown Mo to confirm once back to work
23-Mar-20,Culture & Environment Services,Www.Chainsdirect.Co.Uk, 171.83 ,Materials and Supplies - Miscellaneous,Chainsaw chains for Arb Team
12-Feb-20,Culture & Environment Services,Www.Clarkforest.Com, 99.00 ,Materials and Supplies - Miscellaneous,Chain saw Bio oil
05-Mar-20,Culture & Environment Services,Www.Eurekadirect.Co.Uk, 119.00 ,Materials and Supplies - Miscellaneous,First Aid supplies for HEARS
20-Mar-20,Culture & Environment Services,Www.Eurekadirect.Co.Uk, 159.90 ,Materials and Supplies - Miscellaneous,First Aid supplies for HEARS
13-Mar-20,Culture & Environment Services,Www.Fastfix.Co.Uk, 414.92 ,Miscellaneous Stock  - Purchases,Water pump to empty overflowing drain
16-Mar-20,Culture & Environment Services,Www.Fta.Co.Uk, 160.00 ,Direct Transport Costs,20x steering wheel covers
03-Feb-20,Culture & Environment Services,Www.Gear4music.Com, 130.41 ,Equipment / Furniture / Materials,Purchase of Shotgun Condenser Microphone for Hearing Loop
20-Feb-20,Culture & Environment Services,Www.Green-Tech.Co.Uk, 82.00 ,Materials and Supplies - Miscellaneous,Weld Mesh 1.2m x 200mm and 1.8m x 200mm
04-Mar-20,Culture & Environment Services,Www.Indigoshop.Co.Uk, 30.55 ,Equipment / Furniture / Materials,Hazard tape for barriers
30-Mar-20,Culture & Environment Services,Www.Indigoshop.Co.Uk, 52.40 ,Equipment / Furniture / Materials,Hazard tape for market social distance safety guidance
02-Mar-20,Culture & Environment Services,Www.Inn-Dispensable.Com, 280.00 ,Training Expenses,Personal License Course 
05-Mar-20,Culture & Environment Services,Www.Licencecheck.Co.Uk, 700.00 ,Transport Costs - Miscellaneous,200 License Check credits
10-Mar-20,Culture & Environment Services,Www.Lifesaversdirect, 90.63 ,Training/Courses Running Costs,Replacement Lungs and Anti-Bac Wipes for CPR Manikins
12-Mar-20,Culture & Environment Services,Www.Lifesaversdirect, 289.20 ,Training/Courses Running Costs,Replacement parts for first aid manikins
12-Mar-20,Culture & Environment Services,Www.Lsengineers.Co.Uk, 9.35 ,Materials and Supplies - Miscellaneous,chainsaw fuel filler cap
16-Mar-20,Culture & Environment Services,Www.Medisupplies.Co.Uk, 133.50 ,Cleaning Supplies,Disposable aprons for cleaning
21-Feb-20,Culture & Environment Services,Www.Planningportal.Co., 213.33 ,Non Contracted_Professional Services,Planning application of cooler for limelight bar
09-Mar-20,Culture & Environment Services,Www.Toolstation.Com, 206.33 ,Equipment / Furniture / Materials,PPE Filters and cases
25-Mar-20,Development,Amazon.Co.Uk, 23.43 ,Equipment / Furniture / Materials,"Keyboard for home working, MCS"
13-Feb-20,Development,Amznmktplace, 97.50 ,Equipment / Furniture / Materials,Key safe for Handford Homes
23-Mar-20,Development,Amznmktplace, 31.69 ,Equipment / Furniture / Materials,Keyboard & associated equip for home working
30-Mar-20,Development,Amznmktplace Amazon.Co.Uk, 49.62 ,Equipment / Furniture / Materials,"WFH keyboards, mouse etc - MCS team, various"
17-Mar-20,Development,Argos Ltd, 67.47 ,Clothing / Uniform & Laundry,BC surveyors laptop bags
24-Mar-20,Development,Av Unit, 35.00 ,Premises Costs - Miscellaneous,repairs to av equipment
02-Mar-20,Development,Caterbox.Co.Uk, 23.41 ,Equipment / Furniture / Materials,recycle cups bin
27-Feb-20,Development,Geodesys, 81.61 ,Capital Expenditure,93 Byron rd
02-Mar-20,Development,Geodesys, 89.83 ,Capital Expenditure,93 sheldrake dr
04-Mar-20,Development,Halfords 0883, 29.17 ,Equipment / Furniture / Materials,screen wash for pool cars
05-Mar-20,Development,Ihbc.Org.Uk, 124.00 ,Employee Expenses,2020/21 Membership RS
19-Feb-20,Development,Ipswich Borough Co, 10.00 ,Capital - Specific Works,"St Stephens Ch, parking dispensation"
19-Feb-20,Development,Ipswich Borough Co, 10.00 ,Capital - Specific Works,"St Stephens Ch, parking dispensation"
19-Feb-20,Development,Ipswich Borough Co, 10.00 ,Capital - Specific Works,"St Stephens Ch, parking dispensation"
27-Feb-20,Development,Nochex.*utilitysearch, 100.17 ,Capital Expenditure,93 Byron rd
26-Feb-20,Development,Paypal, 182.24 ,Reactive Repairs,Schneider Electric Pro-Unity for Crem 
13-Mar-20,Development,Replacement Keys Ltd, 11.62 ,Equipment / Furniture / Materials,replacement keys
05-Mar-20,Development,Royal Town Planning, 315.00 ,Employee Expenses,2020 membership 
31-Mar-20,Development,Sainsburys S/mkt, 5.50 ,Equipment / Furniture / Materials,milk
02-Mar-20,Development,Sainsburys S/mkt, 8.60 ,Subsistence & Conference/Seminar / Event Expenses,milk
27-Feb-20,Development,Sainsburys S/mkts, 8.08 ,Cleaning Supplies,dw cleaner
11-Mar-20,Development,Sainsburys S/mkts, 15.00 ,Cleaning Supplies,Hand soap supply and bags for pool vehicle wipes
16-Mar-20,Development,Sainsburys S/mkts, 9.17 ,Cleaning Supplies,bags for pool car wipes disposal
23-Mar-20,Development,Screwfix Direct, 279.04 ,Equipment / Furniture / Materials,Tools as required for emerrgencies
31-Mar-20,Development,Shell Ranelagh 390, 3.32 ,Equipment / Furniture / Materials,milk
24-Feb-20,Development,Stationery Office Book, 22.65 ,Advertising/Publicity,London Gazette advert for Burlington Road Area Extension
11-Mar-20,Development,The Range, 4.58 ,Cleaning Supplies,Hand soap supply
02-Mar-20,Development,"Www,eastsuffolk.Gov.Uk", 96.00 ,Non Contracted_Professional Services,Partnership Inspections 8 Ogden Dr
06-Mar-20,Development,Www.Banneruk.Com, 4.96 ,Stationery,Graph paper (planning and development)
11-Mar-20,Development,Www.Banneruk.Com, 1.65 ,Stationery,Protractor (pack of 10) (Planning and Development)
02-Mar-20,Development,Www.Brownsladders.Co.U, 145.80 ,Equipment / Furniture / Materials,new ladder for Istore
04-Mar-20,Development,Www.Excalibur-Hygeine., 80.80 ,Cleaning Supplies,hand gels and dispenser
10-Mar-20,Development,Www.Iosh.Co.Uk, 208.00 ,Employee Expenses,IOSH subs 
30-Mar-20,Development,Www.Midsuffolk.Gov.Uk, 100.00 ,Non Contracted_Professional Services,Partnership Inspections 20 Purcell Road
04-Mar-20,Development,Www.Planningportal.Co., 141.00 ,Capital Expenditure,"Sproughton, amendments via Pln Portal"
04-Mar-20,Development,Www.Planningportal.Co., 259.00 ,Capital Expenditure,"Sproughton, discharge of conditions"
13-Mar-20,Development,Www.Planningportal.Co., 259.00 ,Long Term Creditors (detail),Planning app fees for Kevin Beattie statue
16-Mar-20,Finance & Revenues,Amazon.Co.Uk, 347.02 ,Computer Equipment - Purchase,Webcams / Speakerphones for conferencing
16-Mar-20,Finance & Revenues,Amazon.Co.Uk," 1,332.71 ",Computer Equipment - Purchase,Webcams / Speakerphones for conferencing
09-Mar-20,Finance & Revenues,Amznmktplace, 17.49 ,Computer Equipment - Purchase,Usb / HDMI convertors
16-Mar-20,Finance & Revenues,Amznmktplace, 53.90 ,Equipment / Furniture / Materials,10 x 32gb USB Flash drives
02-Mar-20,Finance & Revenues,Amznmktplace, 9.92 ,Telecommunication Costs - Mobiles,Protective cases for Smartphones
02-Mar-20,Finance & Revenues,Amznmktplace, 4.96 ,Telecommunication Costs - Mobiles,Protective cases for Smartphones
02-Mar-20,Finance & Revenues,Amznmktplace, 9.92 ,Telecommunication Costs - Mobiles,Protective cases for Smartphones
04-Mar-20,Finance & Revenues,Amznmktplace, 6.83 ,Telecommunication Costs - Mobiles,Protective cases for Smartphones
04-Mar-20,Finance & Revenues,Amznmktplace, 6.82 ,Telecommunication Costs - Mobiles,Protective cases for Smartphones
31-Mar-20,Finance & Revenues,Amznmktplace, 53.98 ,Training Expenses,2 x Surface Adapters
18-Mar-20,Finance & Revenues,Amznmktplace Amazon.Co.Uk, 45.81 ,Computer Equipment - Purchase,USB / HDMI convertors
12-Mar-20,Finance & Revenues,Amznmktplace Amazon.Co.Uk, 24.98 ,Telecommunication Costs - Business Phones,Headphone amplifier
30-Mar-20,Finance & Revenues,Amznmktplace Amazon.Co.Uk, 92.85 ,Telecommunication Costs - Mobiles,Protective cases for Smartphones
30-Mar-20,Finance & Revenues,Amznmktplace Amazon.Co.Uk, 36.11 ,Telecommunication Costs - Mobiles,Protective cases for Smartphones
25-Feb-20,Finance & Revenues,Cbt Nuggets Llc, 47.14 ,Training Expenses,IT Training
25-Mar-20,Finance & Revenues,Cbt Nuggets Llc, 52.78 ,Training Expenses,ICT Training
31-Mar-20,Finance & Revenues,Comms Express Ltd, 193.00 ,Computer Equipment - Purchase,IT stock
18-Mar-20,Finance & Revenues,Digicert Inc, 84.94 ,Computer Software - Purchase,SSL/TLS certificate
02-Mar-20,Finance & Revenues,Ebuyer (UK) Ltd, 203.17 ,Equipment / Furniture / Materials,20 x Laptop sleeves
12-Mar-20,Finance & Revenues,Hp Inc UK Limited, 84.00 ,Materials and Supplies - Miscellaneous,Mice and AC Adapters (Stock for IP City)
20-Mar-20,Finance & Revenues,Kenable Ltd, 31.55 ,Equipment / Furniture / Materials,30 x HDMI Cables
17-Mar-20,Finance & Revenues,Paypal, 127.92 ,Computer Consumables and other Minor IT costs,Domain renewals
25-Mar-20,Finance & Revenues,Paypal, 19.98 ,Computer Consumables and other Minor IT costs,Domain renewal
06-Mar-20,Finance & Revenues,Service Fees - Fraedom Pty Ltd, 383.15 ,Computer Software - Maintenance,Fraedom Uk Ltd - Card usage fees 1/2/20-29/2/20
06-Mar-20,Finance & Revenues,Trainline, 23.35 ,Training Expenses,Travel expenses for training
03-Mar-20,Finance & Revenues,Trainline, 59.17 ,Use Of Public Transport,Rail Tickets 
18-Mar-20,Finance & Revenues,Www.Kaplanfoulkslynch., 45.53 ,Training Expenses,CIMA Study material 
18-Mar-20,Finance & Revenues,Www.Kaplanfoulkslynch., 26.56 ,Training Expenses,CIMA Study material 
09-Mar-20,Housing & Community Services,Air Quality News, 195.00 ,Training Expenses,AQN conference booking
13-Mar-20,Housing & Community Services,Amazon Prime, 7.99 ,Equipment / Furniture / Materials,Amazon Prime
27-Feb-20,Housing & Community Services,Amazon.Co.Uk, 20.00 ,Equipment / Furniture / Materials,Floor cleaning pads for mop used in stores 
09-Mar-20,Housing & Community Services,Amznmktplace, 12.90 ,Equipment / Furniture / Materials,"Mouse, mouse pad, wrist support "
26-Feb-20,Housing & Community Services,Amznmktplace, 19.50 ,Materials and Supplies - Miscellaneous,Fire drop keys
30-Mar-20,Housing & Community Services,Amznmktplace, 19.50 ,Materials and Supplies - Miscellaneous,Fire Keys
30-Mar-20,Housing & Community Services,Amznmktplace, 19.50 ,Materials and Supplies - Miscellaneous,Fire Keys
30-Mar-20,Housing & Community Services,Amznmktplace, 19.50 ,Materials and Supplies - Miscellaneous,Fire Keys
26-Feb-20,Housing & Community Services,Amznmktplace, 49.17 ,Miscellaneous Expenses,scheme items and antibacterial Gel for all schemes
04-Mar-20,Housing & Community Services,Amznmktplace, 104.27 ,Publications - Purchase,Books
16-Mar-20,Housing & Community Services,Amznmktplace Amazon.Co.Uk, 5.66 ,Materials and Supplies - Miscellaneous,4 x bag it Plastics Grip Seal Bags for Env Health officers
04-Mar-20,Housing & Community Services,Amznmktplace Amazon.Co.Uk, 109.92 ,Telecommunication Costs - Mobiles,Items for tablets
09-Mar-20,Housing & Community Services,Amznmktplace Amazon.Co.Uk, 31.07 ,Training Expenses,Autocad book
31-Mar-20,Housing & Community Services,Ao Retail Limited, 179.00 ,Services for Clients,Washing Macine
26-Feb-20,Housing & Community Services,Argos Ltd, 247.45 ,Equipment / Furniture / Materials,"Desk fans, cooling tower fans, glasses"
05-Mar-20,Housing & Community Services,Asda Superstore, 6.47 ,Housing  - other Costs,South West and North West AHP Refreshments
06-Mar-20,Housing & Community Services,Asda Superstore, 4.82 ,Housing  - other Costs,East AHP refreshments
20-Mar-20,Housing & Community Services,Avanti West Coast, 85.50 ,Services for Clients,train fare 
12-Mar-20,Housing & Community Services,B & M Retail, 12.58 ,Cleaning Supplies,Cleaning supplies for CSC / CCC
13-Mar-20,Housing & Community Services,B & M Retail, 8.98 ,Cleaning Supplies,Cleaning supplies for CSC / CCC
16-Mar-20,Housing & Community Services,B&m Retail Ltd, 7.98 ,Materials and Supplies - Miscellaneous,De-caff coffee x 2
27-Feb-20,Housing & Community Services,Booker Limited Ipswich, 26.59 ,Materials and Supplies - Miscellaneous,Coffee/Milk
02-Mar-20,Housing & Community Services,Booker Limited Ipswich, 9.59 ,Materials and Supplies - Miscellaneous,Milk/Sugar
06-Mar-20,Housing & Community Services,Booker Limited Ipswich, 18.99 ,Materials and Supplies - Miscellaneous,Coffee
09-Mar-20,Housing & Community Services,Booker Limited Ipswich, 33.28 ,Materials and Supplies - Miscellaneous,Tea/coffee/milk
12-Mar-20,Housing & Community Services,Booker Limited Ipswich, 9.59 ,Materials and Supplies - Miscellaneous,Milk/Sugar
17-Mar-20,Housing & Community Services,Booker Limited Ipswich, 7.60 ,Materials and Supplies - Miscellaneous,Milk
30-Mar-20,Housing & Community Services,Booker Limited Ipswich, 118.30 ,Materials and Supplies - Miscellaneous,10x boxes hand soap (100 per box)
30-Mar-20,Housing & Community Services,Booker Limited Ipswich, 53.88 ,Materials and Supplies - Miscellaneous,12 Nail/Scrubbing Brushes for emergency cleaning kits
30-Mar-20,Housing & Community Services,Booker Limited Ipswich, 155.34 ,Materials and Supplies - Miscellaneous,"54 dispenser pumps, 10x trigger bottles 2x soap"
02-Mar-20,Housing & Community Services,Bunzl, 75.68 ,Cleaning Supplies,wipes
16-Mar-20,Housing & Community Services,Bunzl, 182.10 ,Cleaning Supplies,"Non-latex gloves, handgel, antibac wipes"
26-Feb-20,Housing & Community Services,Capita Gas Reg, 375.46 ,Employee Expenses,Gas safe registrations
12-Mar-20,Housing & Community Services,Cemex UK Operations Lt, 71.60 ,Materials and Supplies - Miscellaneous,Concrete
12-Mar-20,Housing & Community Services,Cemex UK Operations Lt, 79.56 ,Premises Costs - Miscellaneous,Concrete
27-Feb-20,Housing & Community Services,Combined Heating Service, 864.00 ,Training Expenses,Heating course
25-Feb-20,Housing & Community Services,Cpw Locksmiths And Securi, 80.00 ,HRA Special Repairs & Maintenance,provide lock to scheme
04-Mar-20,Housing & Community Services,Cpw Locksmiths And Securi, 10.00 ,HRA Special Repairs & Maintenance,provide key for tenant
25-Mar-20,Housing & Community Services,Cpw Locksmiths And Securi, 100.00 ,HRA Special Repairs & Maintenance,10 x IBH2 KB keys for redeployed staff access to schemes
30-Mar-20,Housing & Community Services,Cpw Locksmiths And Securi, 23.33 ,HRA Special Repairs & Maintenance,keys 
05-Mar-20,Housing & Community Services,Dickens News & Off Lic, 20.00 ,Materials and Supplies - Miscellaneous,Electric
16-Mar-20,Housing & Community Services,Eoe Coop, 31.43 ,Premises Costs - Miscellaneous,GAS TOP UP AND SUNDRIES FOR ISOLATION HOUSE
02-Apr-19,Housing & Community Services,Eoe Co-Op, 15.00 ,Materials and Supplies - Miscellaneous,Electric for empty properties
15-Apr-19,Housing & Community Services,Eoe Co-Op, 20.00 ,Materials and Supplies - Miscellaneous,Electric for empty properties
08-May-19,Housing & Community Services,Eoe Co-Op, 15.00 ,Materials and Supplies - Miscellaneous,Electric for empty properties
22-May-19,Housing & Community Services,Eoe Co-Op, 25.00 ,Materials and Supplies - Miscellaneous,Electric for empty properties
06-Mar-20,Housing & Community Services,Excitech Ltd, 666.00 ,Training Expenses,Autocad course 
18-Mar-20,Housing & Community Services,Fast Key Services Limi, 6.12 ,HRA Special Repairs & Maintenance,2 filing cabinet keys Morecambe Court
17-Mar-20,Housing & Community Services,Greater Anglia T/o, 99.60 ,Training Expenses,Train ticket for apprentice
16-Mar-20,Housing & Community Services,Greater Anglia Trains, 17.70 ,Specific Campaigns / Projects expenditure,Train ticket for a Navigator to visit client in HMP Norwich
09-Mar-20,Housing & Community Services,Gtr Anglia Delay Repay,-14.50 ,Use Of Public Transport,refund of train ticket due to cancellation
09-Mar-20,Housing & Community Services,Gtr Anglia Delay Repay,-37.00 ,Use Of Public Transport,refund of train ticket due to cancelled service
03-Mar-20,Housing & Community Services,Highstreetvouchers, 246.50 ,Housing  - other Costs,Vouchers for Tenant Awards winners and runners up x6
11-Mar-20,Housing & Community Services,Home Bargains, 16.67 ,Cleaning Supplies,Cleaning wipes in relation to COVID19 pandemic
26-Mar-20,Housing & Community Services,Hotel On Booking.Com, 343.00 ,Services for Clients,Sheltered tenant needed emergency accomm
13-Mar-20,Housing & Community Services,Ipswich Furniture Proj, 542.13 ,Premises Costs - Miscellaneous,Furniture for isolation house
10-Mar-20,Housing & Community Services,J2 Efax Plus Service, 11.00 ,Miscellaneous Expenses,Monthly fee for use of secure fax system (food parcels)
24-Mar-20,Housing & Community Services,Map Uk, 72.29 ,Miscellaneous Expenses,PPE staff 70% hand gel for all frontline Sheltered staff
07-Jun-19,Housing & Community Services,One Stop 0857, 25.00 ,Materials and Supplies - Miscellaneous,Electric for empty properties
25-Feb-20,Housing & Community Services,One Stop 0857,-15.00 ,Materials and Supplies - Miscellaneous,Electric Voids
25-Feb-20,Housing & Community Services,One Stop 0857, 15.00 ,Materials and Supplies - Miscellaneous,Electric Voids
05-Feb-20,Housing & Community Services,Possessionclaim.Go, 325.00 ,Legal Services & Fees,possession claim on line
06-Feb-20,Housing & Community Services,Possessionclaim.Go, 121.00 ,Legal Services & Fees,possession claim on line
06-Feb-20,Housing & Community Services,Possessionclaim.Go, 325.00 ,Legal Services & Fees,possession claim on line
06-Feb-20,Housing & Community Services,Possessionclaim.Go, 325.00 ,Legal Services & Fees,possession claim on line
07-Feb-20,Housing & Community Services,Possessionclaim.Go, 121.00 ,Legal Services & Fees,warrant for possession
11-Feb-20,Housing & Community Services,Possessionclaim.Go, 325.00 ,Legal Services & Fees,possession claim on line
11-Feb-20,Housing & Community Services,Possessionclaim.Go, 325.00 ,Legal Services & Fees,possession claim on line
11-Feb-20,Housing & Community Services,Possessionclaim.Go, 325.00 ,Legal Services & Fees,possession claim on line
20-Feb-20,Housing & Community Services,Possessionclaim.Go, 325.00 ,Legal Services & Fees,Possession claim on line
20-Feb-20,Housing & Community Services,Possessionclaim.Go, 325.00 ,Legal Services & Fees,possession claim on line
20-Feb-20,Housing & Community Services,Possessionclaim.Go, 325.00 ,Legal Services & Fees,possession claim on line
20-Feb-20,Housing & Community Services,Possessionclaim.Go, 325.00 ,Legal Services & Fees,possession claim on line
24-Feb-20,Housing & Community Services,Possessionclaim.Go, 325.00 ,Legal Services & Fees,Possession claim on line
24-Feb-20,Housing & Community Services,Possessionclaim.Go, 325.00 ,Legal Services & Fees,Possession claim on line
27-Feb-20,Housing & Community Services,Possessionclaim.Go, 325.00 ,Legal Services & Fees,Possession claim on line
04-Mar-20,Housing & Community Services,Possessionclaim.Go, 325.00 ,Legal Services & Fees,possession claim on line
06-Mar-20,Housing & Community Services,Possessionclaim.Go, 325.00 ,Legal Services & Fees,Possession claim on line
06-Mar-20,Housing & Community Services,Possessionclaim.Go, 325.00 ,Legal Services & Fees,possession claim on line
06-Mar-20,Housing & Community Services,Possessionclaim.Go, 325.00 ,Legal Services & Fees,Possession claim on line
06-Mar-20,Housing & Community Services,Possessionclaim.Go, 325.00 ,Legal Services & Fees,possession claim on line
06-Mar-20,Housing & Community Services,Possessionclaim.Go, 325.00 ,Legal Services & Fees,possession claim on line
06-Mar-20,Housing & Community Services,Possessionclaim.Go, 325.00 ,Legal Services & Fees,Possession claim on line
06-Mar-20,Housing & Community Services,Possessionclaim.Go, 121.00 ,Legal Services & Fees,warrant for possession
10-Mar-20,Housing & Community Services,Possessionclaim.Go, 121.00 ,Legal Services & Fees,warrant for possession
25-Mar-20,Housing & Community Services,Post Office Counter, 100.00 ,Premises Costs - Miscellaneous,Meter top ups at isolation house
04-Mar-20,Housing & Community Services,Post Office Counter, 1.88 ,Stationery,Recorded delivery Scheme TV licence renewal
17-Mar-20,Housing & Community Services,Poundland Ltd 1344, 44.17 ,Materials and Supplies - Miscellaneous,"Whiteboard markers, polly pockets"
12-Mar-20,Housing & Community Services,Poundland Ltd 1344, 3.00 ,Stationery,Stationery for CSC / CCC
12-Mar-20,Housing & Community Services,Poundland Ltd 1719, 36.10 ,Cleaning Supplies,Cleaning Supplies for CSC / CCC
13-Mar-20,Housing & Community Services,Poundland Ltd 1719, 16.20 ,Cleaning Supplies,Cleaning supplies for CCC / CSC
16-Mar-20,Housing & Community Services,Poundland Ltd 1719, 24.42 ,Materials and Supplies - Miscellaneous,box files and tissues
17-Mar-20,Housing & Community Services,Poundland Ltd 1719, 2.50 ,Materials and Supplies - Miscellaneous,Antibac wipes for TIC
18-Mar-20,Housing & Community Services,Poundland Ltd 1719, 8.33 ,Stationery,whiteboard pens
24-Mar-20,Housing & Community Services,Ryder-Davies & Partners, 267.03 ,Non Contracted_Professional Services,Vet Inspection for dog breeding licence
27-Mar-20,Housing & Community Services,Sainsburys S/mkt, 214.70 ,Materials and Supplies - Miscellaneous,Food Parcels
02-Mar-20,Housing & Community Services,Sainsburys S/mkts, 0.80 ,Materials and Supplies - Miscellaneous,milk for staff
06-Mar-20,Housing & Community Services,Sainsburys S/mkts, 4.80 ,Materials and Supplies - Miscellaneous,milk and coffee for staff
13-Mar-20,Housing & Community Services,Sainsburys S/mkts, 0.80 ,Materials and Supplies - Miscellaneous,Staff milk
16-Mar-20,Housing & Community Services,Screwfix Direct, 3.32 ,Premises Costs - Miscellaneous,Fire exit sign Gipping House 
09-Mar-20,Housing & Community Services,Screwfix Direct Lt, 41.66 ,Premises Costs - Miscellaneous,Combination Door Lock Deadbolt 
25-Feb-20,Housing & Community Services,Southend County, 100.00 ,Legal Services & Fees,5 Gas Warrants for East Team
12-Mar-20,Housing & Community Services,Storagemart UK A-20ed4d5a, 137.94 ,Services for Clients,storage costs for homeless family
16-Mar-20,Housing & Community Services,The Post Office, 175.00 ,Employee Expenses,Completion of application for SIA licence
17-Mar-20,Housing & Community Services,Timpson Ltd, 171.75 ,Housing  - other Costs,4x Glass trophies and engraving for tenant awards
26-Feb-20,Housing & Community Services,Trainline, 152.81 ,Legal Services & Fees,HQN 
27-Feb-20,Housing & Community Services,Trainline, 48.51 ,Training Expenses,Travel for HQN training
02-Mar-20,Housing & Community Services,Trainline, 72.00 ,Use Of Public Transport,Train ticket for EHO
13-Mar-20,Housing & Community Services,Trainline,-89.60 ,Use Of Public Transport,Refund for unused train tickets
09-Mar-20,Housing & Community Services,Waitrose Ltd, 1.92 ,Materials and Supplies - Miscellaneous,Milk
26-Mar-20,Housing & Community Services,Wayfair #3064417514, 207.97 ,Services for Clients,Furniture S2S
31-Mar-20,Housing & Community Services,Wf* Wayfair 3067247084, 303.98 ,Services for Clients,Furniture JS
16-Mar-20,Housing & Community Services,Wolseley Uk, 675.79 ,Premises Costs - Miscellaneous,New water Heater Gipping House 
27-Feb-20,Housing & Community Services,Www.Banneruk.Com, 18.72 ,Stationery,Stationery
13-Mar-20,Housing & Community Services,Www.Banneruk.Com, 46.03 ,Stationery,Stationery
13-Mar-20,Housing & Community Services,Www.Banneruk.Com, 163.22 ,Stationery,Stationery
17-Mar-20,Housing & Community Services,Www.Banneruk.Com, 167.44 ,Stationery,Stationery for CCC / CSC
18-Mar-20,Housing & Community Services,Www.Banneruk.Com, 7.02 ,Stationery,Stationery for CSC / CCC
20-Mar-20,Housing & Community Services,Www.Banneruk.Com,-34.51 ,Stationery,Refund
27-Mar-20,Housing & Community Services,Www.Banneruk.Com, 6.16 ,Stationery,Stationery
13-Mar-20,Housing & Community Services,Www.Bunzlcleaningsuppl, 20.90 ,Materials and Supplies - Miscellaneous,Cleanline Sanisafe Probe Wipes for Env Health officers
13-Mar-20,Housing & Community Services,Www.Csstorage.Co.Uk, 15.54 ,Materials and Supplies - Miscellaneous,Lock for Locker
05-Mar-20,Housing & Community Services,Www.Homeless.Org.Uk, 199.00 ,Specific Campaigns / Projects expenditure,membership of professional organisation
06-Mar-20,Housing & Community Services,Www.Homeless.Org.Uk, 370.00 ,Specific Campaigns / Projects expenditure,2 x tickets to Housing First conference
19-Mar-20,Housing & Community Services,Www.Leaders.Co.Uk/Page, 183.46 ,Services for Clients,Holding Fee 
09-Mar-20,Housing & Community Services,Www.Toolstation.Com, 33.32 ,Premises Costs - Miscellaneous,Combination Door Lock Deadbolt Toilet 
05-Mar-20,Housing & Community Services,Www.Ucs.Ac.Uk, 45.00 ,Training Expenses,Training costs 
30-Mar-20,People & Governance,Amazon.Co.Uk, 37.47 ,Miscellaneous Stock  - Purchases,Envelopes for the Print Room use
24-Mar-20,People & Governance,Amznmktplace, 129.15 ,Computer Consumables and other Minor IT costs,Toner Cartridge for Licensing 
16-Mar-20,People & Governance,Amznmktplace, 9.00 ,Equipment / Furniture / Materials,shoe covers for visits
16-Mar-20,People & Governance,Amznmktplace, 17.81 ,Mayoral Related Expenditure,Mayors Ball Hats and Aprons
11-Mar-20,People & Governance,Amznmktplace, 68.15 ,Publications - Purchase,Cornerstone on Social Housing publication
28-Feb-20,People & Governance,Amznmktplace Amazon.Co.Uk, 6.65 ,Advertising/Publicity,Made in Suffolk resources
21-Feb-20,People & Governance,B & M Retail, 14.95 ,Miscellaneous Functions & Events,chocolates for 2nd prizes for mayors quiz
21-Feb-20,People & Governance,B & M Retail, 18.81 ,Miscellaneous Functions & Events,wooden spoons (quiz) Black table clothes (death of a royal)
10-Mar-20,People & Governance,Companies House, 13.00 ,Legal Services & Fees,company house fee for IBC company
25-Feb-20,People & Governance,Debenhams, 144.25 ,Miscellaneous Functions & Events,Uniform. Grey suit
11-Mar-20,People & Governance,Ed Sheeran Made In Suf, 37.46 ,Advertising/Publicity,Competition prize
24-Feb-20,People & Governance,Facebk *2bdp3sn8j2, 188.22 ,Advertising/Publicity,Facebook Advertising
24-Feb-20,People & Governance,Facebk *2bdp3sn8j2, 35.67 ,Advertising/Publicity,Facebook Advertising
24-Feb-20,People & Governance,Facebk *2bdp3sn8j2, 259.44 ,Advertising/Publicity,Facebook Advertising
02-Mar-20,People & Governance,Facebk *3cueesa8j2, 2.40 ,Advertising/Publicity,Facebook Advertising
02-Mar-20,People & Governance,Facebk *3cueesa8j2, 107.05 ,Advertising/Publicity,Facebook Advertising
02-Mar-20,People & Governance,Facebk *3cueesa8j2, 373.88 ,Advertising/Publicity,Facebook Advertising
11-Feb-20,People & Governance,Facebk *5qpdnr28j2, 37.18 ,Advertising/Publicity,Facebook Advertising
11-Feb-20,People & Governance,Facebk *5qpdnr28j2, 215.69 ,Advertising/Publicity,Facebook Advertising
11-Feb-20,People & Governance,Facebk *5qpdnr28j2, 8.12 ,Advertising/Publicity,Facebook Advertising
11-Feb-20,People & Governance,Facebk *5qpdnr28j2, 184.49 ,Advertising/Publicity,Facebook Advertising
11-Feb-20,People & Governance,Facebk *5qpdnr28j2, 37.84 ,Advertising/Publicity,Facebook Advertising
31-Jan-20,People & Governance,Facebk *7sp3sra8j2, 54.36 ,Advertising/Publicity,Facebook Advertising
31-Jan-20,People & Governance,Facebk *7sp3sra8j2, 67.02 ,Advertising/Publicity,Facebook Advertising
31-Jan-20,People & Governance,Facebk *7sp3sra8j2, 126.56 ,Advertising/Publicity,Facebook Advertising
31-Jan-20,People & Governance,Facebk *7sp3sra8j2, 184.23 ,Advertising/Publicity,Facebook Advertising
31-Jan-20,People & Governance,Facebk *7sp3sra8j2, 51.16 ,Advertising/Publicity,Facebook Advertising
12-Mar-20,People & Governance,Facebk *8gvj8sw7j2, 21.07 ,Advertising/Publicity,Facebook Advertising
12-Mar-20,People & Governance,Facebk *8gvj8sw7j2, 59.22 ,Advertising/Publicity,Facebook Advertising
12-Mar-20,People & Governance,Facebk *8gvj8sw7j2, 401.55 ,Advertising/Publicity,Facebook Advertising
12-Mar-20,People & Governance,Facebk *8gvj8sw7j2, 1.49 ,Advertising/Publicity,Facebook Advertising
17-Mar-20,People & Governance,Facebk *8j5ppsa8j2, 16.92 ,Advertising/Publicity,Facebook Advertising
17-Mar-20,People & Governance,Facebk *8j5ppsa8j2, 63.35 ,Advertising/Publicity,Facebook Advertising
17-Mar-20,People & Governance,Facebk *8j5ppsa8j2, 395.93 ,Advertising/Publicity,Facebook Advertising
17-Mar-20,People & Governance,Facebk *8j5ppsa8j2, 7.13 ,Advertising/Publicity,Facebook Advertising
17-Feb-20,People & Governance,Facebk *9qyxqr28j2, 30.37 ,Advertising/Publicity,Facebook Advertising
17-Feb-20,People & Governance,Facebk *9qyxqr28j2, 163.77 ,Advertising/Publicity,Facebook Advertising
17-Feb-20,People & Governance,Facebk *9qyxqr28j2, 64.06 ,Advertising/Publicity,Facebook Advertising
17-Feb-20,People & Governance,Facebk *9qyxqr28j2, 204.24 ,Advertising/Publicity,Facebook Advertising
17-Feb-20,People & Governance,Facebk *9qyxqr28j2, 20.90 ,Advertising/Publicity,Facebook Advertising
23-Jan-20,People & Governance,Facebk *jgn8jqe8j2, 47.95 ,Advertising/Publicity,Facebook Advertising
23-Jan-20,People & Governance,Facebk *jgn8jqe8j2, 60.43 ,Advertising/Publicity,Facebook Advertising
23-Jan-20,People & Governance,Facebk *jgn8jqe8j2, 126.48 ,Advertising/Publicity,Facebook Advertising
23-Jan-20,People & Governance,Facebk *jgn8jqe8j2, 182.41 ,Advertising/Publicity,Facebook Advertising
23-Jan-20,People & Governance,Facebk *jgn8jqe8j2, 66.06 ,Advertising/Publicity,Facebook Advertising
07-Feb-20,People & Governance,Facebk *m39kwra8j2, 25.63 ,Advertising/Publicity,Facebook Advertising
07-Feb-20,People & Governance,Facebk *m39kwra8j2, 99.32 ,Advertising/Publicity,Facebook Advertising
07-Feb-20,People & Governance,Facebk *m39kwra8j2, 16.27 ,Advertising/Publicity,Facebook Advertising
07-Feb-20,People & Governance,Facebk *m39kwra8j2, 221.74 ,Advertising/Publicity,Facebook Advertising
07-Feb-20,People & Governance,Facebk *m39kwra8j2, 2.78 ,Advertising/Publicity,Facebook Advertising
07-Feb-20,People & Governance,Facebk *m39kwra8j2, 12.50 ,Training/Courses Running Costs,Facebook Advertising
09-Mar-20,People & Governance,Facebk *ryu6bsn8j2, 48.15 ,Advertising/Publicity,Facebook Advertising
09-Mar-20,People & Governance,Facebk *ryu6bsn8j2, 196.21 ,Advertising/Publicity,Facebook Advertising
20-Feb-20,People & Governance,Facebk *zkaacs68j2, 0.74 ,Advertising/Publicity,Facebook Advertising
20-Feb-20,People & Governance,Facebk *zkaacs68j2, 201.80 ,Advertising/Publicity,Facebook Advertising
20-Feb-20,People & Governance,Facebk *zkaacs68j2, 62.92 ,Advertising/Publicity,Facebook Advertising
20-Feb-20,People & Governance,Facebk *zkaacs68j2, 199.03 ,Advertising/Publicity,Facebook Advertising
20-Feb-20,People & Governance,Facebk *zkaacs68j2, 18.83 ,Advertising/Publicity,Facebook Advertising
12-Mar-20,People & Governance,Freelance Offset Services, 140.57 ,Computer Consumables and other Minor IT costs,Masters and Ink for the Print Room use
27-Jan-20,People & Governance,Google, 38.99 ,Advertising/Publicity,Google Ads - MIS exhibition
26-Feb-20,People & Governance,Google Ads1746131584, 186.87 ,Advertising/Publicity,Google Ads - MIS exhibition
27-Mar-20,People & Governance,Google Ads1746131584, 28.70 ,Advertising/Publicity,Remaining Google Ads bill for the exhibition pre-shutdown
09-Mar-20,People & Governance,Google Ads7268098578, 200.00 ,Advertising/Publicity,Google Ads for Classes & Swim campaign
21-Feb-20,People & Governance,Helloprint B.V., 60.16 ,Capital Funding Stream,Mesh Pond Banners for Chantry Park
27-Feb-20,People & Governance,Helloprint B.V., 513.04 ,Printing Costs,Museums brochure
02-Mar-20,People & Governance,Isaca, 465.24 ,Training Expenses,ISACA Exam Fee
04-Mar-20,People & Governance,Label Planet Ltd, 151.25 ,Miscellaneous Stock  - Purchases,Bulk Labels for Print Room use plus circular ones
27-Feb-20,People & Governance,Mailchimp, 259.53 ,Subscriptions - Service Related,MailChimp - email marketing
13-Mar-20,People & Governance,Mailchimp, 484.68 ,Subscriptions - Service Related,MailChimp - Email Marketing
27-Mar-20,People & Governance,Mailchimp, 287.26 ,Subscriptions - Service Related,MailChimp email marketing
09-Mar-20,People & Governance,Paypal, 25.00 ,Mayoral Related Expenditure,Mayors Ball - deposit for Magician
09-Mar-20,People & Governance,Ryman, 29.98 ,Computer Consumables and other Minor IT costs,2x HP301 Black inks 
17-Mar-20,People & Governance,Ryman, 169.16 ,Computer Consumables and other Minor IT costs,Ink Cartridges - to be manually recharged
13-Mar-20,People & Governance,Sainsburys S/mkt, 10.42 ,Mayoral Related Expenditure,Cleaning products for Mayor�s Parlour
21-Feb-20,People & Governance,Sainsburys S/mkt, 28.33 ,Miscellaneous Functions & Events,Prosecco for mayors quiz night 1st prizes
28-Feb-20,People & Governance,Sainsburys S/mkt, 32.67 ,Miscellaneous Functions & Events,spare wine for fair trade event (now stock)
11-Feb-20,People & Governance,Sainsburys S/mkts, 6.67 ,Miscellaneous Functions & Events,pot plant for 100th birthday
21-Feb-20,People & Governance,Shopify* 75775662, 23.24 ,Financial Fees & Services,Made in Suffolk Online Shop
23-Mar-20,People & Governance,Shopify* 77189966, 25.91 ,Specific Campaigns / Projects expenditure,Made in Suffolk online shop
16-Mar-20,People & Governance,Signs For You Ltd, 48.95 ,Printing Costs,2nd Correx A0 sign
17-Mar-20,People & Governance,"Sprout Social, Inc", 801.73 ,Subscriptions - Service Related,Social Media Management
28-Feb-20,People & Governance,Stk*shutterstock, 139.00 ,Advertising/Publicity,Stock photo credits
09-Mar-20,People & Governance,Tesco Store 2748, 9.17 ,Equipment / Furniture / Materials,Black Ink Cartridge for Christchurch Mansion Printer
05-Feb-20,People & Governance,Thetrainline.Com, 56.99 ,Use Of Public Transport,train fare to London for SOR
12-Mar-20,People & Governance,Trainline, 87.16 ,Use Of Public Transport,Train fare to London FI forum
12-Mar-20,People & Governance,Trainline, 19.83 ,Use Of Public Transport,Travel to Norwich for NALEP Marketing Consortium
18-Mar-20,People & Governance,Trainline,-84.20 ,Use Of Public Transport,refund of train travel - event cancelled
12-Mar-20,People & Governance,Waitrose Ltd, 2.83 ,Mayoral Related Expenditure,Milk and Coffee for Mayor�s Parlour
24-Jan-20,People & Governance,Waitrose Ltd, 0.31 ,Miscellaneous Functions & Events,items for reception
23-Mar-20,People & Governance,West Suffolk Council,-50.00 ,Mayoral Related Expenditure,Cancellation of 2 mayoral tickets for WSC Civic Dinner
26-Feb-20,People & Governance,West Suffolk Council, 50.00 ,Miscellaneous Functions & Events,2 tickets for WSC Civic Dinner
21-Feb-20,People & Governance,Wh Smith, 6.65 ,Miscellaneous Functions & Events,raffle books for mayors quiz
02-Mar-20,People & Governance,Wilko Retail Limited, 23.77 ,Miscellaneous Functions & Events,paint/polifiller for mayors parlour
28-Jan-20,People & Governance,Www.Banneruk.Com, 109.11 ,Computer Consumables and other Minor IT costs,Riso ink for envelope printer in print room
29-Jan-20,People & Governance,Www.Banneruk.Com, 73.35 ,Computer Consumables and other Minor IT costs,canon PG540XL/541XL CLLR RUDKIN
31-Jan-20,People & Governance,Www.Banneruk.Com, 37.00 ,Computer Consumables and other Minor IT costs,Canon PGI550XL 
31-Jan-20,People & Governance,Www.Banneruk.Com, 60.00 ,Computer Consumables and other Minor IT costs,CLi-551 CMYK
31-Jan-20,People & Governance,Www.Banneruk.Com, 446.00 ,Computer Consumables and other Minor IT costs,2x Print room wide format inks
31-Jan-20,People & Governance,Www.Banneruk.Com, 669.00 ,Computer Consumables and other Minor IT costs,3 x Wide format inks for print room
04-Feb-20,People & Governance,Www.Banneruk.Com, 66.66 ,Computer Consumables and other Minor IT costs,Cleaning cartridge for Print roomwide format
04-Feb-20,People & Governance,Www.Banneruk.Com, 70.00 ,Computer Consumables and other Minor IT costs,PGi-570/CLi-571 CMYK 
18-Feb-20,People & Governance,Www.Banneruk.Com, 56.37 ,Computer Consumables and other Minor IT costs,PG545 black/CL546 colour 
02-Mar-20,People & Governance,Www.Banneruk.Com, 24.84 ,Computer Consumables and other Minor IT costs,Laminating pouches_ Parking Services/ Print room
02-Mar-20,People & Governance,Www.Banneruk.Com, 49.67 ,Computer Consumables and other Minor IT costs,Laminating pouches_ Parking Services/ Print room
02-Mar-20,People & Governance,Www.Banneruk.Com, 37.56 ,Computer Consumables and other Minor IT costs,pPG-540/541 multi pack 
04-Mar-20,People & Governance,Www.Banneruk.Com, 65.84 ,Computer Consumables and other Minor IT costs,Canon 729 toner 
09-Mar-20,People & Governance,Www.Banneruk.Com, 79.97 ,Computer Consumables and other Minor IT costs,Ink Cartridges to be manually recharged
25-Feb-20,People & Governance,Www.Banneruk.Com, 207.58 ,Miscellaneous Stock  - Purchases,Envelopes for the Print Room use
17-Mar-20,People & Governance,Www.Banneruk.Com, 50.88 ,Miscellaneous Stock  - Purchases,Envelopes for Print Room use
17-Mar-20,People & Governance,Www.Banneruk.Com, 85.40 ,Miscellaneous Stock  - Purchases,Envelopes for the Print Room use
11-Feb-20,People & Governance,Www.Paper.Co.Uk, 101.83 ,Miscellaneous Stock  - Purchases,Specialist Paper for the Print Room
21-Feb-20,People & Governance,Www.Paper.Co.Uk, 165.66 ,Miscellaneous Stock  - Purchases,Specialist Paper for the Print Room
04-Mar-20,People & Governance,Www.Paper.Co.Uk, 195.79 ,Miscellaneous Stock  - Purchases,Pulpboard and Crackback stickers for Print Room use
18-Mar-20,People & Governance,Www.Paper.Co.Uk, 61.70 ,Miscellaneous Stock  - Purchases,Specialist paper for the Print room use
26-Mar-20,People & Governance,Www.Paper.Co.Uk, 166.45 ,Miscellaneous Stock  - Purchases,Self Carbonating Paper for the Print Room
13-Mar-20,People & Governance,Www.Presco-Uk.Com, 43.49 ,Miscellaneous Stock  - Purchases,Plastic Free Binding Covers for print room use
